[Event "Titled Tuesday Blitz May 24 Early 2022"]
[White "Borgaonkar Akshay"]
[Black "Janaszak, Dawid"]
[WhiteFideId "25639110"]
[BlackFideId "1119206"]
[WhiteElo "1639"]
[BlackElo "2199"]
[Result "0-1"]
[Round "07"]
[TimeControl "180+1"]
[Date "2022.05.25"]
[WhiteClock "0:00:05"]
[BlackClock "0:00:10"]

1. e4 {[%clk 0:02:58]}  c5 {[%clk 0:02:59]} 2. Nf3 {[%clk 0:02:57]}  Nc6 {[%clk 0:02:59]} 3. b4 {[%clk 0:02:53]}  cxb4 {[%clk 0:02:53]} 4. d4 {[%clk 0:02:51]}  e6 {[%clk 0:02:54]} 5. Bb2 {[%clk 0:02:50]}  d5 {[%clk 0:02:53]} 6. e5 {[%clk 0:02:46]}  Be7 {[%clk 0:02:53]} 7. Bd3 {[%clk 0:02:46]}  f5 {[%clk 0:02:52]} 8. Rg1 {[%clk 0:02:39]}  Nh6 {[%clk 0:02:50]} 9. h3 {[%clk 0:02:37]}  O-O {[%clk 0:02:48]} 10. g4 {[%clk 0:02:35]}  fxg4 {[%clk 0:02:22]} 11. hxg4 {[%clk 0:02:34]}  Bg5 {[%clk 0:02:20]} 12. Rh1 {[%clk 0:02:18]}  Bd7 {[%clk 0:02:13]} 13. Nxg5 {[%clk 0:01:40]}  Qxg5 {[%clk 0:02:11]} 14. Bc1 {[%clk 0:01:40]}  Rf4 {[%clk 0:01:59]} 15. Bxf4 {[%clk 0:01:06]}  Qxf4 {[%clk 0:02:00]} 16. Qd2 {[%clk 0:01:04]}  Qxd4 {[%clk 0:01:39]} 17. c3 {[%clk 0:00:45]}  Qxe5+ {[%clk 0:01:36]} 18. Kf1 {[%clk 0:00:43]}  bxc3 {[%clk 0:01:11]} 19. Nxc3 {[%clk 0:00:42]}  Nd4 {[%clk 0:01:11]} 20. Re1 {[%clk 0:00:39]}  Nf3 {[%clk 0:00:44]} 21. Rxe5 {[%clk 0:00:28]}  Nxd2+ {[%clk 0:00:44]} 22. Ke2 {[%clk 0:00:29]}  Nc4 {[%clk 0:00:38]} 23. Bxc4 {[%clk 0:00:17]}  dxc4 {[%clk 0:00:38]} 24. f3 {[%clk 0:00:16]}  Rf8 {[%clk 0:00:36]} 25. Rc5 {[%clk 0:00:15]}  Bc6 {[%clk 0:00:36]} 26. Rf1 {[%clk 0:00:14]}  Nf7 {[%clk 0:00:33]} 27. Rxc4 {[%clk 0:00:10]}  Ne5 {[%clk 0:00:34]} 28. Rd4 {[%clk 0:00:07]}  Nxf3 {[%clk 0:00:34]} 29. Rdd1 {[%clk 0:00:05]}  h6 {[%clk 0:00:26]} 30. Ke3 {[%clk 0:00:05]}  Rf6 {[%clk 0:00:23]} 31. Ne4 {[%clk 0:00:05]}  Bxe4 {[%clk 0:00:22]} 32. Kxe4 {[%clk 0:00:06]}  Ng5+ {[%clk 0:00:23]} 33. Ke5 {[%clk 0:00:05]}  Nf3+ {[%clk 0:00:23]} 34. Kd6 {[%clk 0:00:04]}  e5+ {[%clk 0:00:23]} 35. Ke7 {[%clk 0:00:04]}  e4 {[%clk 0:00:22]} 36. Rd8+ {[%clk 0:00:03]}  Kh7 {[%clk 0:00:22]} 37. Re8 {[%clk 0:00:02]}  e3 {[%clk 0:00:22]} 38. Kd8 {[%clk 0:00:02]}  Ne5 {[%clk 0:00:09]} 39. Rxe5 {[%clk 0:00:01]}  Rxf1 {[%clk 0:00:08]} 40. Rxe3 {[%clk 0:00:02]}  Rg1 {[%clk 0:00:09]} 41. Kc7 {[%clk 0:00:03]}  Rxg4 {[%clk 0:00:08]} 42. Kxb7 {[%clk 0:00:04]}  Ra4 {[%clk 0:00:09]} 43. Re2 {[%clk 0:00:04]}  h5 {[%clk 0:00:09]} 44. Kc6 {[%clk 0:00:05]}  h4 {[%clk 0:00:09]} 45. Kb5 {[%clk 0:00:06]}  Ra3 {[%clk 0:00:09]} 46. Kb4 {[%clk 0:00:05]}  Rg3 {[%clk 0:00:09]} 47. a4 {[%clk 0:00:06]}  h3 {[%clk 0:00:09]} 48. Kb5 {[%clk 0:00:04]}  Rg2 {[%clk 0:00:09]} 49. Re3 {[%clk 0:00:04]}  h2 {[%clk 0:00:10]} 50. Rh3+ {[%clk 0:00:05]}  Kg8 {[%clk 0:00:09]} 51. Ka6 {[%clk 0:00:05]}  Rg6+ {[%clk 0:00:09]} 52. Kxa7 {[%clk 0:00:05]}  Rh6 {[%clk 0:00:10]} 0-1


[Site "https://www.chess.com"]

[Event "Titled Tuesday Blitz May 24 Early 2022"]
[White "Bortnyk, Olexandr"]
[Black "Garriga Cazorla, Pere"]
[WhiteFideId "14120828"]
[BlackFideId "32011601"]
[WhiteElo "2723"]
[BlackElo "2433"]
[Result "1-0"]
[Round "07"]
[TimeControl "180+1"]
[Date "2022.05.24"]
[WhiteClock "0:00:29"]
[BlackClock "0:00:14"]

1. d4 {[%clk 0:02:59]}  Nf6 {[%clk 0:02:53]} 2. Nc3 {[%clk 0:03:00]}  d5 {[%clk 0:02:52]} 3. Bf4 {[%clk 0:03:01]}  c5 {[%clk 0:02:49]} 4. e4 {[%clk 0:03:01]}  cxd4 {[%clk 0:02:48]} 5. Qxd4 {[%clk 0:03:00]}  Nc6 {[%clk 0:02:49]} 6. Qa4 {[%clk 0:03:00]}  d4 {[%clk 0:02:43]} 7. Nb5 {[%clk 0:03:00]}  e5 {[%clk 0:02:35]} 8. Bxe5 {[%clk 0:03:00]}  Bb4+ {[%clk 0:02:25]} 9. c3 {[%clk 0:03:00]}  dxc3 {[%clk 0:02:25]} 10. bxc3 {[%clk 0:02:45]}  O-O {[%clk 0:02:23]} 11. Rd1 {[%clk 0:02:41]}  Qe7 {[%clk 0:02:14]} 12. Bxf6 {[%clk 0:02:40]}  Qxe4+ {[%clk 0:02:14]} 13. Ne2 {[%clk 0:02:26]}  gxf6 {[%clk 0:02:14]} 14. cxb4 {[%clk 0:02:20]}  Nxb4 {[%clk 0:01:50]} 15. Nc3 {[%clk 0:01:35]}  Nd3+ {[%clk 0:01:49]} 16. Rxd3 {[%clk 0:01:33]}  Qxd3 {[%clk 0:01:50]} 17. Qe4 {[%clk 0:01:25]}  Bf5 {[%clk 0:01:49]} 18. Qxd3 {[%clk 0:01:24]}  Bxd3 {[%clk 0:01:50]} 19. Nf4 {[%clk 0:01:06]}  Bxf1 {[%clk 0:01:46]} 20. Rxf1 {[%clk 0:01:06]}  Rfd8 {[%clk 0:01:43]} 21. Ncd5 {[%clk 0:01:03]}  Kg7 {[%clk 0:01:42]} 22. Ke2 {[%clk 0:01:00]}  Rac8 {[%clk 0:01:42]} 23. Rd1 {[%clk 0:00:48]}  Rc2+ {[%clk 0:01:37]} 24. Ke3 {[%clk 0:00:48]}  Rxa2 {[%clk 0:01:33]} 25. Nh5+ {[%clk 0:00:49]}  Kh6 {[%clk 0:01:33]} 26. Nhxf6 {[%clk 0:00:47]}  Rd6 {[%clk 0:01:30]} 27. g4 {[%clk 0:00:44]}  Re6+ {[%clk 0:01:24]} 28. Kf3 {[%clk 0:00:42]}  Kg6 {[%clk 0:01:10]} 29. Nh5 {[%clk 0:00:35]}  Kg5 {[%clk 0:00:59]} 30. Ne3 {[%clk 0:00:29]}  Ra5 {[%clk 0:00:19]} 31. h4+ {[%clk 0:00:28]}  Kxh4 {[%clk 0:00:18]} 32. Nf4 {[%clk 0:00:29]}  Rf6 {[%clk 0:00:14]} 33. Rh1+ {[%clk 0:00:29]}  Kg5 {[%clk 0:00:14]} 34. Rh5# {[%clk 0:00:29]} 1-0


[Site "https://www.chess.com"]

[Event "Titled Tuesday Blitz May 24 Early 2022"]
[White "Butti, Enrique"]
[Black "Ambartsumova, Karina"]
[WhiteFideId "3700470"]
[BlackFideId "4166299"]
[WhiteElo "2080"]
[BlackElo "2262"]
[Result "0-1"]
[Round "07"]
[TimeControl "180+1"]
[Date "2022.05.25"]
[WhiteClock "0:00:44"]
[BlackClock "0:00:35"]

1. d4 {[%clk 0:03:00]}  Nf6 {[%clk 0:02:59]} 2. Nf3 {[%clk 0:02:59]}  g6 {[%clk 0:02:59]} 3. c4 {[%clk 0:02:57]}  Bg7 {[%clk 0:03:00]} 4. Nc3 {[%clk 0:02:57]}  O-O {[%clk 0:03:00]} 5. Bg5 {[%clk 0:02:56]}  d6 {[%clk 0:02:59]} 6. e3 {[%clk 0:02:55]}  c5 {[%clk 0:02:53]} 7. Be2 {[%clk 0:02:52]}  h6 {[%clk 0:02:49]} 8. Bh4 {[%clk 0:02:50]}  g5 {[%clk 0:02:49]} 9. Bg3 {[%clk 0:02:50]}  Nh5 {[%clk 0:02:49]} 10. d5 {[%clk 0:02:43]}  Nxg3 {[%clk 0:02:39]} 11. hxg3 {[%clk 0:02:41]}  Nd7 {[%clk 0:02:29]} 12. Qc2 {[%clk 0:02:38]}  e5 {[%clk 0:01:52]} 13. Bd3 {[%clk 0:02:24]}  Qe7 {[%clk 0:01:45]} 14. Nd2 {[%clk 0:02:16]}  Nf6 {[%clk 0:01:34]} 15. O-O-O {[%clk 0:02:00]}  a6 {[%clk 0:01:27]} 16. a4 {[%clk 0:01:50]}  Ng4 {[%clk 0:01:23]} 17. Rdf1 {[%clk 0:01:48]}  f5 {[%clk 0:01:21]} 18. e4 {[%clk 0:01:38]}  f4 {[%clk 0:01:18]} 19. Nd1 {[%clk 0:01:32]}  Bd7 {[%clk 0:01:05]} 20. f3 {[%clk 0:01:29]}  Nf6 {[%clk 0:01:01]} 21. g4 {[%clk 0:01:27]}  b5 {[%clk 0:00:58]} 22. axb5 {[%clk 0:01:25]}  axb5 {[%clk 0:00:59]} 23. Nc3 {[%clk 0:01:13]}  Ra1+ {[%clk 0:00:54]} 24. Ncb1 {[%clk 0:01:12]}  bxc4 {[%clk 0:00:51]} 25. Nxc4 {[%clk 0:01:09]}  Rb8 {[%clk 0:00:46]} 26. Rh2 {[%clk 0:00:58]}  Ba4 {[%clk 0:00:45]} 27. Qe2 {[%clk 0:00:51]}  Bb3 {[%clk 0:00:43]} 28. Rfh1 {[%clk 0:00:44]}  Kh7 {[%clk 0:00:35]} 0-1


[Site "https://www.chess.com"]

[Event "Titled Tuesday Blitz May 24 Early 2022"]
[White "Castaneda, Jhon David"]
[Black "Yuan, Qingyu"]
[WhiteFideId "4405048"]
[BlackFideId "8609772"]
[WhiteElo "2152"]
[BlackElo "2359"]
[Result "0-1"]
[Round "07"]
[TimeControl "180+1"]
[Date "2022.05.25"]
[WhiteClock "0:00:11"]
[BlackClock "0:00:08"]

1. d4 {[%clk 0:03:00]}  d5 {[%clk 0:03:00]} 2. Nf3 {[%clk 0:03:00]}  Nf6 {[%clk 0:03:00]} 3. c4 {[%clk 0:03:01]}  e6 {[%clk 0:03:00]} 4. Nc3 {[%clk 0:03:02]}  a6 {[%clk 0:03:01]} 5. cxd5 {[%clk 0:03:02]}  exd5 {[%clk 0:03:02]} 6. Bg5 {[%clk 0:03:02]}  Be6 {[%clk 0:03:02]} 7. e3 {[%clk 0:03:01]}  Nbd7 {[%clk 0:03:03]} 8. Rc1 {[%clk 0:03:01]}  Bd6 {[%clk 0:03:01]} 9. Bd3 {[%clk 0:03:01]}  c6 {[%clk 0:03:01]} 10. O-O {[%clk 0:03:01]}  Bg4 {[%clk 0:02:58]} 11. Be2 {[%clk 0:02:57]}  O-O {[%clk 0:02:57]} 12. Re1 {[%clk 0:02:55]}  Re8 {[%clk 0:02:54]} 13. a3 {[%clk 0:02:54]}  Qe7 {[%clk 0:02:50]} 14. Nh4 {[%clk 0:02:50]}  Bxe2 {[%clk 0:02:50]} 15. Qxe2 {[%clk 0:02:49]}  Qe6 {[%clk 0:02:43]} 16. Qf3 {[%clk 0:02:49]}  Ne4 {[%clk 0:02:41]} 17. Bf4 {[%clk 0:02:29]}  Be7 {[%clk 0:01:59]} 18. Bg3 {[%clk 0:02:26]}  g6 {[%clk 0:01:51]} 19. Qd1 {[%clk 0:02:23]}  Bxh4 {[%clk 0:01:33]} 20. Bxh4 {[%clk 0:02:22]}  f5 {[%clk 0:01:30]} 21. f3 {[%clk 0:02:15]}  Nxc3 {[%clk 0:01:30]} 22. Rxc3 {[%clk 0:02:16]}  Nb6 {[%clk 0:01:24]} 23. b3 {[%clk 0:02:15]}  Qd6 {[%clk 0:01:20]} 24. Qc1 {[%clk 0:02:12]}  Re6 {[%clk 0:01:20]} 25. Bg3 {[%clk 0:02:12]}  Qe7 {[%clk 0:01:17]} 26. Be5 {[%clk 0:02:12]}  Rxe5 {[%clk 0:01:18]} 27. dxe5 {[%clk 0:02:11]}  Qxe5 {[%clk 0:01:19]} 28. Qd2 {[%clk 0:02:10]}  Re8 {[%clk 0:01:18]} 29. Rcc1 {[%clk 0:02:10]}  Nc8 {[%clk 0:01:15]} 30. Qd4 {[%clk 0:02:09]}  Qe7 {[%clk 0:01:14]} 31. Qc5 {[%clk 0:02:07]}  Nd6 {[%clk 0:01:12]} 32. a4 {[%clk 0:02:02]}  Qd7 {[%clk 0:01:11]} 33. Rcd1 {[%clk 0:02:00]}  Re6 {[%clk 0:01:07]} 34. Qd4 {[%clk 0:01:55]}  Qe7 {[%clk 0:01:07]} 35. Qb6 {[%clk 0:01:50]}  Re5 {[%clk 0:01:06]} 36. Kf1 {[%clk 0:01:44]}  h5 {[%clk 0:01:05]} 37. Qd4 {[%clk 0:01:42]}  Kh7 {[%clk 0:01:05]} 38. Kf2 {[%clk 0:01:28]}  Re6 {[%clk 0:01:04]} 39. Kf1 {[%clk 0:01:27]}  Qg5 {[%clk 0:00:58]} 40. h4 {[%clk 0:01:14]}  Qe7 {[%clk 0:00:53]} 41. Kf2 {[%clk 0:01:13]}  Kg8 {[%clk 0:00:51]} 42. Qf4 {[%clk 0:01:06]}  Kh7 {[%clk 0:00:51]} 43. Kg1 {[%clk 0:00:47]}  Nf7 {[%clk 0:00:51]} 44. Kf2 {[%clk 0:00:43]}  Ne5 {[%clk 0:00:48]} 45. Qd4 {[%clk 0:00:41]}  Qa3 {[%clk 0:00:43]} 46. Re2 {[%clk 0:00:40]}  Re7 {[%clk 0:00:37]} 47. Qc3 {[%clk 0:00:38]}  Qd6 {[%clk 0:00:32]} 48. Qd4 {[%clk 0:00:37]}  Qe6 {[%clk 0:00:27]} 49. Rc1 {[%clk 0:00:36]}  Nd7 {[%clk 0:00:27]} 50. Rce1 {[%clk 0:00:35]}  c5 {[%clk 0:00:27]} 51. Qc3 {[%clk 0:00:34]}  b6 {[%clk 0:00:26]} 52. Qd3 {[%clk 0:00:34]}  a5 {[%clk 0:00:26]} 53. Qc3 {[%clk 0:00:33]}  Nf6 {[%clk 0:00:26]} 54. Qd3 {[%clk 0:00:33]}  Qd6 {[%clk 0:00:26]} 55. g3 {[%clk 0:00:33]}  Qe5 {[%clk 0:00:25]} 56. Qb5 {[%clk 0:00:31]}  Re6 {[%clk 0:00:25]} 57. Qa6 {[%clk 0:00:30]}  Qc7 {[%clk 0:00:20]} 58. Qb5 {[%clk 0:00:29]}  Qe7 {[%clk 0:00:21]} 59. Qa6 {[%clk 0:00:29]}  Kg7 {[%clk 0:00:21]} 60. Qb5 {[%clk 0:00:29]}  Kf7 {[%clk 0:00:21]} 61. Qa6 {[%clk 0:00:29]}  Kg7 {[%clk 0:00:21]} 62. Qb5 {[%clk 0:00:29]}  Ne8 {[%clk 0:00:22]} 63. Qd3 {[%clk 0:00:27]}  Nf6 {[%clk 0:00:17]} 64. Qc3 {[%clk 0:00:26]}  Kf7 {[%clk 0:00:16]} 65. Qd3 {[%clk 0:00:26]}  Qc7 {[%clk 0:00:16]} 66. Rc1 {[%clk 0:00:24]}  Qe5 {[%clk 0:00:16]} 67. Rce1 {[%clk 0:00:23]}  Re7 {[%clk 0:00:16]} 68. Rc1 {[%clk 0:00:23]}  Qe6 {[%clk 0:00:16]} 69. Rce1 {[%clk 0:00:22]}  Rd7 {[%clk 0:00:16]} 70. Qd2 {[%clk 0:00:22]}  Rd6 {[%clk 0:00:16]} 71. Qd3 {[%clk 0:00:22]}  Qe7 {[%clk 0:00:17]} 72. Rd1 {[%clk 0:00:22]}  Qb7 {[%clk 0:00:15]} 73. Rde1 {[%clk 0:00:21]}  Qc6 {[%clk 0:00:15]} 74. Rc1 {[%clk 0:00:21]}  Qd7 {[%clk 0:00:15]} 75. Rd1 {[%clk 0:00:21]}  Qe7 {[%clk 0:00:15]} 76. Rde1 {[%clk 0:00:21]}  Qe5 {[%clk 0:00:16]} 77. Rd1 {[%clk 0:00:20]}  Rd7 {[%clk 0:00:16]} 78. Rde1 {[%clk 0:00:20]}  Kg7 {[%clk 0:00:16]} 79. Rd1 {[%clk 0:00:21]}  Rc7 {[%clk 0:00:16]} 80. Rc1 {[%clk 0:00:21]}  Re7 {[%clk 0:00:16]} 81. Rce1 {[%clk 0:00:21]}  Kh6 {[%clk 0:00:16]} 82. Rd1 {[%clk 0:00:21]}  Kh7 {[%clk 0:00:16]} 83. Rde1 {[%clk 0:00:21]}  Kg7 {[%clk 0:00:17]} 84. Rd1 {[%clk 0:00:22]}  Re6 {[%clk 0:00:16]} 85. Rde1 {[%clk 0:00:22]}  Rd6 {[%clk 0:00:12]} 86. Rd1 {[%clk 0:00:22]}  Qe7 {[%clk 0:00:12]} 87. Rc1 {[%clk 0:00:22]}  Qd7 {[%clk 0:00:11]} 88. Rd1 {[%clk 0:00:22]}  d4 {[%clk 0:00:11]} 89. Red2 {[%clk 0:00:20]}  Qe6 {[%clk 0:00:06]} 90. Re1 {[%clk 0:00:17]}  Qd7 {[%clk 0:00:05]} 91. Qc2 {[%clk 0:00:16]}  dxe3+ {[%clk 0:00:04]} 92. Kxe3 {[%clk 0:00:16]}  Nd5+ {[%clk 0:00:03]} 93. Kf2 {[%clk 0:00:16]}  Nb4 {[%clk 0:00:03]} 94. Rxd6 {[%clk 0:00:15]}  Qxd6 {[%clk 0:00:04]} 95. Qb2+ {[%clk 0:00:14]}  Kf7 {[%clk 0:00:02]} 96. Re3 {[%clk 0:00:15]}  Qd4 {[%clk 0:00:02]} 97. Qe2 {[%clk 0:00:14]}  Nd5 {[%clk 0:00:02]} 98. f4 {[%clk 0:00:12]}  Nxe3 {[%clk 0:00:02]} 99. Qxe3 {[%clk 0:00:12]}  Qxe3+ {[%clk 0:00:03]} 100. Kxe3 {[%clk 0:00:13]}  Ke6 {[%clk 0:00:03]} 101. Kd3 {[%clk 0:00:14]}  Kd5 {[%clk 0:00:04]} 102. Kc3 {[%clk 0:00:13]}  Kd6 {[%clk 0:00:04]} 103. Kc4 {[%clk 0:00:14]}  Kc6 {[%clk 0:00:05]} 104. Kc3 {[%clk 0:00:14]}  b5 {[%clk 0:00:06]} 105. Kd3 {[%clk 0:00:14]}  Kb6 {[%clk 0:00:05]} 106. Kc3 {[%clk 0:00:14]}  c4 {[%clk 0:00:03]} 107. bxc4 {[%clk 0:00:13]}  b4+ {[%clk 0:00:03]} 108. Kd4 {[%clk 0:00:12]}  Kc7 {[%clk 0:00:03]} 109. c5 {[%clk 0:00:11]}  Kd7 {[%clk 0:00:04]} 110. Kc4 {[%clk 0:00:11]}  Kc6 {[%clk 0:00:04]} 111. Kd4 {[%clk 0:00:12]}  b3 {[%clk 0:00:05]} 112. Kc3 {[%clk 0:00:12]}  Kxc5 {[%clk 0:00:05]} 113. Kxb3 {[%clk 0:00:13]}  Kd4 {[%clk 0:00:06]} 114. Ka3 {[%clk 0:00:11]}  Kc3 {[%clk 0:00:06]} 115. Ka2 {[%clk 0:00:11]}  Kb4 {[%clk 0:00:07]} 116. Kb2 {[%clk 0:00:11]}  Kxa4 {[%clk 0:00:08]} 117. g4 {[%clk 0:00:11]}  fxg4 {[%clk 0:00:08]} 0-1


[Site "https://www.chess.com"]

[Event "Titled Tuesday Blitz May 24 Early 2022"]
[White "Chernomordik, Pavel"]
[Black "Jeet, Jain"]
[WhiteFideId "2804530"]
[BlackFideId "5073022"]
[WhiteElo "2220"]
[BlackElo "2028"]
[Result "0-1"]
[Round "07"]
[TimeControl "180+1"]
[Date "2022.05.25"]
[WhiteClock "0:01:13"]
[BlackClock "0:01:21"]

1. e4 {[%clk 0:03:00]}  d5 {[%clk 0:02:50]} 2. exd5 {[%clk 0:03:00]}  Nf6 {[%clk 0:02:48]} 3. Bb5+ {[%clk 0:02:59]}  Nbd7 {[%clk 0:02:42]} 4. c4 {[%clk 0:02:58]}  a6 {[%clk 0:02:39]} 5. Bxd7+ {[%clk 0:02:57]}  Bxd7 {[%clk 0:02:39]} 6. d4 {[%clk 0:02:55]}  b5 {[%clk 0:02:35]} 7. b3 {[%clk 0:02:52]}  e6 {[%clk 0:02:23]} 8. dxe6 {[%clk 0:02:45]}  Bxe6 {[%clk 0:02:24]} 9. d5 {[%clk 0:02:45]}  Bg4 {[%clk 0:02:23]} 10. f3 {[%clk 0:02:42]}  Bf5 {[%clk 0:02:18]} 11. Ne2 {[%clk 0:02:40]}  Bc5 {[%clk 0:02:13]} 12. Bb2 {[%clk 0:02:30]}  bxc4 {[%clk 0:02:06]} 13. bxc4 {[%clk 0:02:29]}  Rb8 {[%clk 0:02:07]} 14. Bd4 {[%clk 0:02:22]}  Bxd4 {[%clk 0:01:57]} 15. Nxd4 {[%clk 0:02:20]}  Qe7+ {[%clk 0:01:58]} 16. Kf1 {[%clk 0:02:19]}  Bg6 {[%clk 0:01:45]} 17. Nc3 {[%clk 0:02:05]}  Qe3 {[%clk 0:01:34]} 18. Nce2 {[%clk 0:01:48]}  Bd3 {[%clk 0:01:28]} 19. Qc1 {[%clk 0:01:38]}  Qxd4 {[%clk 0:01:26]} 20. Qe1 {[%clk 0:01:13]}  Rb2 {[%clk 0:01:21]} 0-1


[Site "https://www.chess.com"]

[Event "Titled Tuesday Blitz May 24 Early 2022"]
[White "Costachi, Mihnea"]
[Black "Seemann, Jakub"]
[WhiteFideId "1217518"]
[BlackFideId "21874697"]
[WhiteElo "2476"]
[BlackElo "2003"]
[Result "1-0"]
[Round "07"]
[TimeControl "180+1"]
[Date "2022.05.24"]
[WhiteClock "0:01:59"]
[BlackClock "0:01:39"]

1. d4 {[%clk 0:03:00]}  Nf6 {[%clk 0:02:51]} 2. Bg5 {[%clk 0:03:00]}  e6 {[%clk 0:02:52]} 3. e3 {[%clk 0:02:58]}  h6 {[%clk 0:02:51]} 4. Bh4 {[%clk 0:02:58]}  d5 {[%clk 0:02:40]} 5. Nd2 {[%clk 0:02:52]}  c5 {[%clk 0:02:36]} 6. c3 {[%clk 0:02:53]}  Nc6 {[%clk 0:02:36]} 7. Bd3 {[%clk 0:02:53]}  Be7 {[%clk 0:02:36]} 8. f4 {[%clk 0:02:53]}  O-O {[%clk 0:02:36]} 9. Ngf3 {[%clk 0:02:52]}  Nd7 {[%clk 0:02:26]} 10. Bxe7 {[%clk 0:02:51]}  Qxe7 {[%clk 0:02:27]} 11. O-O {[%clk 0:02:51]}  f5 {[%clk 0:02:24]} 12. Ne5 {[%clk 0:02:48]}  Nf6 {[%clk 0:02:24]} 13. Ndf3 {[%clk 0:02:44]}  Nxe5 {[%clk 0:02:18]} 14. Nxe5 {[%clk 0:02:44]}  Qe8 {[%clk 0:02:18]} 15. dxc5 {[%clk 0:02:43]}  Nd7 {[%clk 0:02:14]} 16. Bb5 {[%clk 0:02:40]}  a6 {[%clk 0:02:11]} 17. Bxd7 {[%clk 0:02:38]}  Bxd7 {[%clk 0:02:12]} 18. Qd4 {[%clk 0:02:36]}  Bb5 {[%clk 0:02:11]} 19. Rf3 {[%clk 0:02:36]}  a5 {[%clk 0:02:12]} 20. Rg3 {[%clk 0:02:35]}  Rf6 {[%clk 0:02:09]} 21. Nd7 {[%clk 0:02:29]}  Rg6 {[%clk 0:02:09]} 22. Rxg6 {[%clk 0:02:20]}  Qxg6 {[%clk 0:02:10]} 23. Ne5 {[%clk 0:02:19]}  Qf6 {[%clk 0:02:10]} 24. a4 {[%clk 0:02:19]}  Be8 {[%clk 0:02:10]} 25. b4 {[%clk 0:02:19]}  axb4 {[%clk 0:02:08]} 26. cxb4 {[%clk 0:02:19]}  Rxa4 {[%clk 0:02:07]} 27. Rxa4 {[%clk 0:02:17]}  Bxa4 {[%clk 0:02:08]} 28. Qa1 {[%clk 0:02:18]}  Bc6 {[%clk 0:02:05]} 29. Qa8+ {[%clk 0:02:02]}  Kh7 {[%clk 0:02:05]} 30. g3 {[%clk 0:02:00]}  g5 {[%clk 0:01:45]} 31. b5 {[%clk 0:01:59]}  gxf4 {[%clk 0:01:39]} 32. exf4 {[%clk 0:01:59]} 1-0


[Site "https://www.chess.com"]

[Event "Titled Tuesday Blitz May 24 Early 2022"]
[White "Coto Mederos, Michel"]
[Black "Darini, Pouria"]
[WhiteFideId "3508528"]
[BlackFideId "12502200"]
[WhiteElo "2548"]
[BlackElo "2744"]
[Result "1-0"]
[Round "07"]
[TimeControl "180+1"]
[Date "2022.05.25"]
[WhiteClock "0:00:40"]
[BlackClock "0:00:44"]

1. c4 {[%clk 0:03:00]}  c5 {[%clk 0:02:57]} 2. Nc3 {[%clk 0:02:59]}  Nc6 {[%clk 0:02:57]} 3. Nf3 {[%clk 0:02:58]}  Nf6 {[%clk 0:02:57]} 4. e3 {[%clk 0:02:58]}  e6 {[%clk 0:02:57]} 5. d4 {[%clk 0:02:58]}  d5 {[%clk 0:02:58]} 6. a3 {[%clk 0:02:58]}  a6 {[%clk 0:02:57]} 7. dxc5 {[%clk 0:02:59]}  Bxc5 {[%clk 0:02:56]} 8. b4 {[%clk 0:02:59]}  Ba7 {[%clk 0:02:57]} 9. Bb2 {[%clk 0:02:59]}  O-O {[%clk 0:02:56]} 10. cxd5 {[%clk 0:02:55]}  exd5 {[%clk 0:02:55]} 11. Be2 {[%clk 0:02:55]}  Bg4 {[%clk 0:02:54]} 12. O-O {[%clk 0:02:50]}  Re8 {[%clk 0:02:54]} 13. Nd4 {[%clk 0:02:36]}  Bxe2 {[%clk 0:02:53]} 14. Ncxe2 {[%clk 0:02:35]}  Ne5 {[%clk 0:02:52]} 15. Qb3 {[%clk 0:02:25]}  Nc4 {[%clk 0:02:52]} 16. Rfd1 {[%clk 0:02:25]}  Nxb2 {[%clk 0:02:52]} 17. Qxb2 {[%clk 0:02:25]}  Ne4 {[%clk 0:02:49]} 18. Nf4 {[%clk 0:02:15]}  Nd6 {[%clk 0:02:21]} 19. Rac1 {[%clk 0:01:31]}  Nc4 {[%clk 0:02:15]} 20. Qa1 {[%clk 0:01:30]}  Rc8 {[%clk 0:01:54]} 21. Nf5 {[%clk 0:01:19]}  Qg5 {[%clk 0:01:54]} 22. Rxd5 {[%clk 0:01:10]}  Qf6 {[%clk 0:01:20]} 23. Qxf6 {[%clk 0:00:46]}  gxf6 {[%clk 0:01:20]} 24. g4 {[%clk 0:00:45]}  Bb8 {[%clk 0:00:55]} 25. Nh5 {[%clk 0:00:43]}  Re6 {[%clk 0:00:44]} 26. Rxc4 {[%clk 0:00:40]} 1-0


[Site "https://www.chess.com"]

[Event "Titled Tuesday Blitz May 24 Early 2022"]
[White "Derraugh, Geordie"]
[Black "Volkov, Maksim"]
[WhiteFideId "2603950"]
[BlackFideId "54123070"]
[WhiteElo "2116"]
[BlackElo "2155"]
[Result "1-0"]
[Round "07"]
[TimeControl "180+1"]
[Date "2022.05.25"]
[WhiteClock "0:01:07"]
[BlackClock "0:00:01"]

1. e4 {[%clk 0:03:00]}  c5 {[%clk 0:02:57]} 2. Nf3 {[%clk 0:02:59]}  d6 {[%clk 0:02:55]} 3. Bb5+ {[%clk 0:02:59]}  Bd7 {[%clk 0:02:54]} 4. Bxd7+ {[%clk 0:02:59]}  Qxd7 {[%clk 0:02:53]} 5. O-O {[%clk 0:02:59]}  Nc6 {[%clk 0:02:51]} 6. Qe2 {[%clk 0:03:00]}  g6 {[%clk 0:02:44]} 7. Rd1 {[%clk 0:02:58]}  Bg7 {[%clk 0:02:41]} 8. c3 {[%clk 0:02:58]}  e5 {[%clk 0:02:40]} 9. d3 {[%clk 0:02:56]}  Nge7 {[%clk 0:02:36]} 10. Be3 {[%clk 0:02:55]}  O-O {[%clk 0:02:35]} 11. Na3 {[%clk 0:02:55]}  f5 {[%clk 0:02:34]} 12. Bg5 {[%clk 0:02:49]}  f4 {[%clk 0:02:32]} 13. Bxe7 {[%clk 0:02:39]}  Qxe7 {[%clk 0:02:31]} 14. h3 {[%clk 0:02:32]}  h5 {[%clk 0:02:24]} 15. Nc2 {[%clk 0:02:30]}  g5 {[%clk 0:02:23]} 16. Nh2 {[%clk 0:02:29]}  Qf7 {[%clk 0:02:19]} 17. b4 {[%clk 0:02:16]}  cxb4 {[%clk 0:02:12]} 18. cxb4 {[%clk 0:02:17]}  a6 {[%clk 0:02:06]} 19. a4 {[%clk 0:02:16]}  b5 {[%clk 0:02:05]} 20. axb5 {[%clk 0:02:15]}  axb5 {[%clk 0:02:06]} 21. Na3 {[%clk 0:02:15]}  Nd4 {[%clk 0:02:04]} 22. Qb2 {[%clk 0:02:13]}  Rfc8 {[%clk 0:01:33]} 23. Rdc1 {[%clk 0:02:01]}  Bf8 {[%clk 0:01:16]} 24. Nf3 {[%clk 0:02:00]}  Nxf3+ {[%clk 0:01:10]} 25. gxf3 {[%clk 0:02:01]}  Qd7 {[%clk 0:01:10]} 26. Rxc8 {[%clk 0:01:58]}  Rxc8 {[%clk 0:01:09]} 27. Qb3+ {[%clk 0:01:57]}  Kg7 {[%clk 0:01:07]} 28. Kg2 {[%clk 0:01:52]}  g4 {[%clk 0:01:05]} 29. hxg4 {[%clk 0:01:48]}  hxg4 {[%clk 0:01:05]} 30. Rh1 {[%clk 0:01:49]}  Be7 {[%clk 0:00:45]} 31. Nxb5 {[%clk 0:01:47]}  Rg8 {[%clk 0:00:35]} 32. Rh5 {[%clk 0:01:41]}  Bf6 {[%clk 0:00:15]} 33. Qd5 {[%clk 0:01:25]}  Rd8 {[%clk 0:00:08]} 34. d4 {[%clk 0:01:16]}  Kg6 {[%clk 0:00:08]} 35. Rf5 {[%clk 0:01:10]}  gxf3+ {[%clk 0:00:03]} 36. Kxf3 {[%clk 0:01:10]}  Qh7 {[%clk 0:00:04]} 37. Rxf6+ {[%clk 0:01:07]}  Kxf6 {[%clk 0:00:04]} 38. dxe5+ {[%clk 0:01:08]}  dxe5 {[%clk 0:00:05]} 39. Qxd8+ {[%clk 0:01:08]}  Kg7 {[%clk 0:00:03]} 40. Qe7+ {[%clk 0:01:08]}  Kg6 {[%clk 0:00:04]} 41. Qxh7+ {[%clk 0:01:09]}  Kxh7 {[%clk 0:00:04]} 42. Nc3 {[%clk 0:01:08]}  Kg6 {[%clk 0:00:05]} 43. b5 {[%clk 0:01:07]}  Kf6 {[%clk 0:00:06]} 44. b6 {[%clk 0:01:07]}  Ke6 {[%clk 0:00:07]} 45. b7 {[%clk 0:01:07]}  Kd7 {[%clk 0:00:01]} 46. b8=Q {[%clk 0:01:07]} 1-0


[Site "https://www.chess.com"]